Cogmind - Beta 16 @@@ ROGUE MODE // 2025.11.17 @ 19:44:19 Player: Pixelizer Result: Destroyed by 7J-I0C(R) with Subdweller Laser Performance ------------- Evolutions (0) 0 Regions Visited (3) 600 Robots Destroyed (7) 35 Value Destroyed (215) 215 Prototype IDs (1) 20 Alien Tech Used (0) 0 Bonus (0) 0 TOTAL SCORE: 870 Bonus ------- None Cogmind --------- Core Integrity 0/250 Matter 276/300 Energy 125/125 System Corruption 1% Temperature Cool (6) Movement Walking (120) Location -10/Subcaves Parts ------- > --- POWER (1) -------- Light Ion Engine > --- PROPULSION (2) --- Aluminum Leg > --- UTILITY (2) ------ (None) > --- WEAPON (2) ------- Medium Laser > --- INVENTORY (5) ---- Large Matter Pod (0) Experimental Sensor Array Medium Laser Peak State ------------ > --- POWER ------------ Light Ion Engine > --- PROPULSION ------- Aluminum Leg Aluminum Leg > --- UTILITY ---------- High-capacity Battery Experimental Sensor Array > --- WEAPON ----------- Medium Laser Medium Laser > --- INVENTORY -------- Light Ion Engine Medium Laser Medium Laser [Rating: 15] Favorites ----------- Power Light Ion Engine Engine Light Ion Engine Propulsion Wheel Leg Aluminum Leg Wheel Wheel Utility High-capacity Battery Device Experimental Sensor Array Storage High-capacity Battery Protection Scrap Shield Weapon Medium Laser Energy Gun Medium Laser Ballistic Gun Assault Rifle Build | -11 -10 -10 -10 ------- Run | Yrd Mat Min Sub Slots Evolved . | . . . . Power . | . . . . Propulsion . | . . . . Utility . | . . . . Weapon . | . . . . Parts Attached 16 | 7 4 1 4 Power 2 | 1 . . 1 Engine 2 | 1 . . 1 Core . | . . . . Reactor . | . . . . Propulsion 4 | 4 . . . Treads . | . . . . Leg 2 | 2 . . . Wheel 2 | 2 . . . Hover . | . . . . Flight . | . . . . Utility 4 | . 2 1 1 Device 1 | . . 1 . Storage 2 | . 2 . . Processor . | . . . . Hackware . | . . . . Protection 1 | . . . 1 Artifact . | . . . . Weapon 6 | 2 2 . 2 Energy Gun 4 | . 2 . 2 Energy Cannon . | . . . . Ballistic Gun 2 | 2 . . . Ballistic Cannon . | . . . . Launcher . | . . . . Special Weapon . | . . . . Impact Weapon . | . . . . Slashing Weapon . | . . . . Piercing Weapon . | . . . . Special Melee Weapon . | . . . . Unidentified Prototypes 1 | . . 1 . Parts Lost 5 | . . . 5 Power 1 | . . . 1 Propulsion 1 | . . . 1 Utility 2 | . . . 2 Weapon 1 | . . . 1 Highest Loss Streak 5 | . . . 5 To Critical Strikes . | . . . . Average Backups 3 | 1 2 4 3 Power . | . . . . Propulsion 1 | 1 2 1 . Utility . | . . . 1 Weapon 1 | . . 2 1 Tool/Special . | . . . . Unused Backups . | . . . . Power . | . . . . Propulsion . | . . . . Utility . | . . . . Weapon . | . . . . Tool/Special . | . . . . Average Slot Usage (%) 93 | . 82 99 89 Engine 13 | . 14 14 13 Leg 11 | . . 10 24 Wheel 15 | . 28 17 . Device 5 | . . 5 11 Storage 17 | . 14 22 11 Energy Gun 23 | . 9 28 28 Ballistic Gun 3 | . 16 . . Peak Build Rating 15 | 5 7 15 15 Average Rating 9 | 3 6 10 12 On Entrance 6 | . 5 7 15 Avg Prop Armor Cover (%) . | . . . . Naked Turns . | . . . . Heaviest Build 25 | 6 14 14 25 Greatest Support 20 | 20 20 20 20 Greatest Overweight (x) 2 | . . . 2 Average Overweight (x) . | . . . . Largest Inventory Capacity 5 | 5 5 5 5 Average Capacity 5 | 5 5 5 5 Most Carried 5 | 2 4 5 5 Average Carried 3 | 1 2 4 4 Final Capacity 5 | 5 5 5 5 Final Carried 4 | 2 4 4 3 Class Distribution -------------------- 100% | Mutant Dominant Class ---------------- Mutant | -10/Materials Mutant | -10/Mines Mutant | -10/Subcaves Resources | -11 -10 -10 -10 ----------- Run | Yrd Mat Min Sub Matter Collected 370 | 241 . 115 14 Remotely . | . . . . Salvage Created 242 | 31 . 115 96 Parts 12 | 2 . 6 4 Haulers Intercepted . | . . . . Recyclers Shooed . | . . . . Parts Field Recycled . | . . . . Retrieved Matter . | . . . . Parts Self-Destructed 7 | . . . 7 Prevented . | . . . . Parts Restored . | . . . . Kills | -11 -10 -10 -10 ------- Run | Yrd Mat Min Sub Combat Hostiles Destroyed 7 | 1 . 4 2 Guns 7 | 1 . 4 2 Classes Destroyed 3 | 1 . 1 1 Swarmer 2 | . . 2 . Grunt 3 | 1 . 2 . Subdweller 2 | . . . 2 Best Kill Streak 2 | 1 . 2 2 Combat Bots Only 2 | 1 . 2 2 Max Kills in Single Turn 2 | 1 . 2 1 Gunslinging 1 | . . 1 . Exploded . | . . . . Melee . | . . . . Uniques/NPCs Destroyed . | . . . . Combat | -11 -10 -10 -10 -------- Run | Yrd Mat Min Sub Hostile Shots Fired 82 | 3 . 36 43 Missed 23 | 2 . 8 13 Hits 59 | 1 . 28 30 Projectile 59 | 1 . 28 30 Critical Strikes 1 | . . 1 . Damage Taken 986 | 10 3 285 688 Core 254 | 10 . 94 150 Absorbed by Shields . | . . . . Core Remaining (%) 96 | 96 . . . Volleys Fired 24 | 2 4 14 4 Largest 2 | 2 2 2 2 Hottest 100 | 40 40 100 100 Shots Fired 49 | 4 8 28 9 Gun 49 | 4 8 28 9 Cannon . | . . . . Launcher . | . . . . Special . | . . . . Kinetic 12 | 4 8 . . Thermal 37 | . . 28 9 Explosive . | . . . . Electromagnetic . | . . . . Robot Hit Streak 11 | 2 6 3 11 Robot Miss Streak 2 | 1 1 2 . Penetration Max . | . . . . Secondary Targets 1 | . . 1 . Max Gunslinging Chain 1 | . . 1 . Shots Hit Robots 36 | 3 5 19 9 Core Hits 13 | 2 1 7 3 Critical Kills . | . . . . Critical Parts Destroyed . | . . . . Critical Strikes 3 | . . 2 1 Burn 3 | . . 2 1 Melee Attacks . | . . . . Impact . | . . . . Slashing . | . . . . Piercing . | . . . . Sneak Attacks . | . . . . Combat Hostiles . | . . . . Follow-up Attacks . | . . . . Damage Inflicted 475 | 35 63 261 116 Guns 469 | 35 57 261 116 Cannons . | . . . . Explosions . | . . . . Melee . | . . . . Ramming 6 | . 6 . . Kinetic 92 | 35 57 . . Thermal 377 | . . 261 116 Explosive . | . . . . Electromagnetic . | . . . . Impact . | . . . . Slashing . | . . . . Piercing . | . . . . Highest Corruption 1 | . 1 1 1 Average Corruption 1 | . 1 1 1 Corruption Purged . | . . . . Corruption Blocked . | . . . . Effects 3 | . . 1 2 Energy Discharges 1 | . . 1 . Data Loss (minor) 1 | . . . 1 Misfires 1 | . . . 1 Overload Shots . | . . . . Overflow Damage . | . . . . Projectiles . | . . . . Explosions . | . . . . Melee . | . . . . Knockbacks . | . . . . Impact . | . . . . Kinetic . | . . . . Secondary . | . . . . Self-Inflicted Damage 3 | . 3 . . Shots . | . . . . Rammed 1 | . 1 . . Targets Rammed 1 | . 1 . . Kicked . | . . . . Crushed . | . . . . Highest Temperature 360 | . . 360 16 Average Temperature 146 | . . 161 6 Received Heat Transfer 315 | 6 . 108 201 Effects 1 | . . 1 . Damage (minor) 1 | . . 1 . Siege Activations . | . . . . Martial Activations . | . . . . Shielding Activations . | . . . . Robots Disrupted . | . . . . Combat Hostiles . | . . . . Robots Corrupted . | . . . . Combat Hostiles . | . . . . Parts Fried . | . . . . Impact Corruptions . | . . . . Robots Melted . | . . . . Combat Hostiles . | . . . . Parts Melted 1 | . . . 1 Heat Transferred 1332 | . . 925 407 Parts Sabotaged . | . . . . Parts Stolen . | . . . . Parts Stripped . | . . . . Power Chain Reactions . | . . . . Alert | -11 -10 -10 -10 ------- Run | Yrd Mat Min Sub Maximum Alert Level . | . . . . Low Security (%) 100 | 100 100 100 . Level 1 . | . . . . Level 2 . | . . . . Level 3 . | . . . . Level 4 . | . . . . Level 5 . | . . . . High Security . | . . . . Max Security . | . . . . Peak Influence 60 | 20 13 60 . Initial 13 | . 13 . . Average 15 | 1 2 25 . Influence Increases 155 | 20 . 135 . Destroy 0b10 Robot/C 100 | 20 . 80 . Destroy Leader 10 | . . 10 . Lose Combat Pursuer 45 | . . 45 . Influence Decreases 155 | . 20 110 25 Entered New Map 20 | . 7 . 13 Time Decay 135 | . 13 110 12 Squads Dispatched . | . . . . Investigation . | . . . . Extermination . | . . . . Reinforcement . | . . . . Assault . | . . . . Garrison . | . . . . Intercept . | . . . . Searches Triggered . | . . . . Construction Impeded . | . . . . Haulers Reinforced . | . . . . Active Scanning Responses . | . . . . Cargo Convoy Interrupts . | . . . . Stealth | -11 -10 -10 -10 --------- Run | Yrd Mat Min Sub Distress Signals . | . . . . Communications Jammed . | . . . . Distress Signals . | . . . . Times Spotted 21 | 1 5 6 9 Peak Tracking Total 8 | 1 3 3 8 Tactical Retreats 2 | . . 2 . Traps | -11 -10 -10 -10 ------- Run | Yrd Mat Min Sub Traps Triggered 1 | . 1 . . Indirectly . | . . . . Trap Hack Attempts . | . . . . Triggered . | . . . . Disarmed . | . . . . Reprogrammed . | . . . . Reused . | . . . . Traps Extracted . | . . . . Installed . | . . . . Triggered . | . . . . Machines | -11 -10 -10 -10 ---------- Run | Yrd Mat Min Sub Machines Disabled . | . . . . Max in Single Turn . | . . . . Machines Repaired . | . . . . Machines Dismantled . | . . . . Machines Sabotaged . | . . . . Overloaded Fab Kills . | . . . . Hacking | -11 -10 -10 -10 --------- Run | Yrd Mat Min Sub Machines Accessed . | . . . . Terminals . | . . . . Fabricators . | . . . . Repair Stations . | . . . . Recycling Units . | . . . . Scanalyzers . | . . . . Garrison Access . | . . . . Total Hacks . | . . . . Successful . | . . . . Failed . | . . . . Catastrophic . | . . . . Database Lockouts . | . . . . Manual . | . . . . Terminals . | . . . . Fabricators . | . . . . Repair Stations . | . . . . Recycling Units . | . . . . Scanalyzers . | . . . . Garrison Access . | . . . . Terminal Hacks . | . . . . Fabricator Hacks . | . . . . Repair Station Hacks . | . . . . Recycling Unit Hacks . | . . . . Scanalyzer . | . . . . Garrison Access Hacks . | . . . . Unauthorized Hacks . | . . . . Terminals . | . . . . Fabricators . | . . . . Repair Stations . | . . . . Recycling Units . | . . . . Scanalyzers . | . . . . Garrison Access . | . . . . Data Cores Recovered . | . . . . Used . | . . . . Hacking Detections . | . . . . Full Trace Events . | . . . . Feedback Events . | . . . . Feedback Blocked . | . . . . Robot Schematics Acquired . | . . . . Robots Built . | . . . . Authchips . | . . . . Time . | . . . . Total Robot Build Rating . | . . . . Part Schematics Acquired . | . . . . Parts Built . | . . . . Authchips . | . . . . Time . | . . . . Total Part Build Rating . | . . . . Part Studies Acquired . | . . . . Parts Repaired . | . . . . Time . | . . . . Parts Recycled . | . . . . Recycled Matter . | . . . . Retrieved Matter . | . . . . Retrieved Components . | . . . . Parts Scanalyzed . | . . . . Part Schematics Acquired . | . . . . Parts Damaged . | . . . . Bothacking | -11 -10 -10 -10 ------------ Run | Yrd Mat Min Sub Used RIF Installer . | . . . . Robots Hacked . | . . . . Non-combat . | . . . . Combat . | . . . . Robot Hacks Applied . | . . . . Relay Couplers Released . | . . . . Fabnet Peak Effective % . | . . . . Robots Rewired . | . . . . Allies Hacked . | . . . . Hacks Repelled . | . . . . Allies | -11 -10 -10 -10 -------- Run | Yrd Mat Min Sub Total Allies . | . . . . Largest Group . | . . . . Highest-Rated Group . | . . . . Highest-Rated Ally . | . . . . Total Orders . | . . . . Ally Attacks . | . . . . Total Damage . | . . . . Kills . | . . . . Allies Corrupted . | . . . . Allies Melted . | . . . . Intel | -11 -10 -10 -10 ------- Run | Yrd Mat Min Sub Active Infowar (turns) 199 | . . 102 97 Sensors 199 | . . 102 97 Robot Analysis Total . | . . . . Derelict Logs Recovered 2 | . . 2 . Drone Launches . | . . . . Drone Recoveries . | . . . . Exploration | -11 -10 -10 -10 ------------- Run | Yrd Mat Min Sub Turns Passed 574 | 74 113 259 128 Spaces Moved 487 | 67 115 218 87 Core 15 | 15 . . . Treads . | . . . . Legs 176 | 4 . 85 87 Wheels 296 | 48 115 133 . Hover . | . . . . Flight . | . . . . Fastest Speed 50 | 50 80 80 120 Average Speed 94 | 75 80 95 124 Slowest Speed 260 | 120 80 120 260 Overloaded Moves . | . . . . Propulsion Burnouts . | . . . . Robots Hopped . | . . . . Potential Cave-ins . | . . . . Cave-ins Triggered . | . . . . Exploration Rate (%) 20 | 7 30 36 10 Regions Visited 3 Branch Regions 2 Pre-discovered Areas . | . . . . Known Exits Taken . | . . . . Unknown Exits Taken 3 | 1 1 1 . Scrap Searched . | . . . . Spaces Dug . | . . . . Terrain Destroyed . | . . . . Melee . | . . . . Projectile . | . . . . AOE . | . . . . Terrain Rammed . | . . . . Walls Destroyed . | . . . . Machines Disabled . | . . . . Actions | -11 -10 -10 -10 --------- Run | Yrd Mat Min Sub Total 549 | 82 127 242 98 Wait 1 | 1 . . . Move 484 | 66 114 217 87 Hop . | . . . . Pick Up 10 | 3 2 4 1 Fast Attach 9 | 5 4 . . Attach 5 | . . 3 2 Detach 1 | . . . 1 Swap 6 | 4 . . 2 Drop 8 | 1 2 4 1 Fire 24 | 2 4 14 4 Melee . | . . . . Ram 1 | . 1 . . Kick . | . . . . Crush . | . . . . Escape Stasis . | . . . . Rewire . | . . . . Trap . | . . . . Miscellaneous . | . . . . Route ------- -11/Scrapyard -10/Materials (discovered 2 exits: [*Min] / [*Sub]) -10/Mines -10/Subcaves History --------- Turn | Location | Event 2 | -11/Scrapyard | Met Revision 17 61 | -11/Scrapyard | Discovered new exit (range 8) 75 | -11/Scrapyard | Entered Materials 91 | -10/Materials | Discovered new exit (range 15) 181 | -10/Materials | Discovered new exit (range 10) 188 | -10/Materials | Entered Mines 193 | -10/Mines | Learned Materials emergency access door positions 225 | -10/Mines | Met a Derelict bent on vengeance 231 | -10/Mines | Learned 4 Materials zone layouts 263 | -10/Mines | Discovered new exit (range 13) 315 | -10/Mines | Build established: Mutant 336 | -10/Mines | Found a damaged Exp. Sensor Array with a note attached 344 | -10/Mines | Found Prototype Device 345 | -10/Mines | Identified Exp. Sensor Array 447 | -10/Mines | Entered Subcaves 448 | -10/Subcaves | Approached by a straggling Scientist 528 | -10/Subcaves | Ambushed by swarm of Subdwellers 541 | -10/Subcaves | Core integrity fell below 50% 554 | -10/Subcaves | Core integrity fell below 20% 575 | -10/Subcaves | Destroyed by 7J-I0C(R) with Subdweller Laser Last Messages --------------- 00538_ Lgt. Ion Engine destroyed. 00540_ LW-FEA(R) destroyed. 00540_ Hcp. Battery destroyed. 00546_ V0-QV4(g) destroyed. 00547_ Subatomizers dissect the Myomer Leg. 00547_ GZ-TXB(R) affixes Scrap Shield Fragment to Scrap Shield. 00549_ System corrupted: FCS attempts to trigger Med. Laser. 00549_ System corrupted: Med. Laser misfires. 00549_ 6K-1N7(R) suffers critical hit (Burn). 00549_ Disposable Heat Sink melted. 00549_ 6K-1N7(R) destroyed. 00553_ Scrap Shield destroyed. 00573_ Med. Laser destroyed. [Achievement: First Step to Greatness] The achievement interface (ESC then open Records) offers an effective way to explore all of your earned achievements as well as seek out new goals for future runs. Map ----- +----------------------------------------------------+ | ?????????????????????????????????????????????????? | | ?????????????????????????????????????????????????? | | ?????????????????????????????????????????????????? | | ??????????????????????????????# ??????????????? | | ???????????????????????????? ?????????????? | | ??????????????????????????? ?????????????? | | ??????????????????????????? ?????????????? | | ??????????????????????????? ??????????????? | | ??????????????????????????? ??????????????? | | ?????????????? ??????????? #??????????????? | | ?????????????# ???????????# #??????????????? | | ?????????????# ??????????? #??????????????? | | ????????????# ??????????# ####???????????? | | ????????????#" ###???????# ## #???????????? | | ??????????? " % #???????# #???????????? | | ??????????? % ???????# #???????????? | | ??????????? % ?####?## #???????????? | | ???????????#" % ## ### #???????????? | | ????????????# #???????????? | | ????????????# R ## #???????????? | | ???????????????# % R####### #???????????? | | ?????????????# #% #?????## #???????????? | | ????????????## ##????## ##???????????? | | ????????????# = #????#" #????????????? | | ????????????### %!###"#]! #????????????? | | ??????????????###% @ R""!%![ #????????????? | | ????????????????### % R !%=%!##????????????? | | ??????????????????# R%!&##?????????????? | | ?????????????????# % * !=#??????????????? | | ???????????????# #### ##??????????????? | | ??????????????# %???# ! ##??????????????? | | ??????????????#####????## =%##[% #??????????????? | | ????????????????????????# ####==##??????????????? | | ??????????????????????? % #?##=%##??????????????? | | ????????????????????? # ### * ##?????????????? | | ?????????????????????#?## # #?????????????? | | ?????????????????????????# #### ##????????????? | | ?????????????##?##??????## #???## #????????????? | | ?????????????# ## ##????# #????# ##????????????? | | ???????????### ####### #????# #?????????????? | | ??????????## ## # ##???# ##????????????? | | ?????????## ##?## #????????????? | | ?????????# # ### ##????????????? | | ??????????# # ### # ## ###???????????? | | ??? # # #?############ #???????????? | | ?? ##???## #### #???????????? | | ????## ##### # ##???????????? | | ?????## # [ #????????????? | | ??????##??# ## ## ## ##????????????? | | ??????????# ## ## # # # #?????????????? | +----------------------------------------------------+ Best States ------------- Heat Dissipation 25 Energy Generation 10 Energy Capacity 375 Matter Stores 307 Matter Capacity 450 Sight Range 16 Robot Scan Range 20 Terrain Scan Density 10 Armor Coverage 800 Evasion (%) 55 Item Schematics ----------------- None Robot Schematics ------------------ None Fabricated ------------ Nothing Repaired ---------- Nothing Studied --------- None Alien Tech Used ----------------- None Achievements -------------- DATA ERROR: Steam Global Achievement% First Step to Greatness For Emergencies Only I Have A Map? Challenges ------------ None Game ------ Seed ImprovedTacticalLeg Manual? 0 Play Time 00:14:06 Cumulative 0.5 hours Start 2025.11.17 @ 19:32:12 End 2025.11.17 @ 19:44:19 Sessions 1 Manual Loads 0 Difficulty Rogue Special Mode None Game No. 2 Rogue 2 Adventurer 0 Explorer 0 Win Type - Total 0 Types 0/0/0/0/0/0/0/0/0/0 Lore% 0 Gallery% 2 Achievement% 2 Wizard Run 0 Options --------- Layout 1 ASCII 0 Keyboard 0 Movement Mouse Keybinds 0 Fullscreen 1 Font 24/Terminus Map View 50x35 Zoom Use 0% Tactical HUD 1 Map Filters NONE Filters NONE Steam 0 RUN: 0ced15ae-b369-448a-896b-204ea513e397